fUST/lending_fUST_20250310
["ID","MTS","AMOUNT","RATE_DAILY","PERIOD"]
[355757337,1741536647134,-3000.0,0.00048289,120]
[355757338,1741536647144,-3000.0,0.00048289,120]
[355757339,1741536647158,-768.4,0.000483,30]
[355757340,1741536647168,-151.0,0.000483,120]
[355757341,1741536647178,-200.116326,0.00048336,120]
[355757342,1741536647188,-200.67557676,0.00048373,10]
[355757343,1741536647199,-500.0,0.00048384,6]
[355757344,1741536647209,-2200.0,0.00048389,120]
[355757345,1741536647219,-2200.0,0.00048389,120]
[355757346,1741536647229,-2200.0,0.00048389,120]
[355757347,1741536647238,-2200.0,0.00048389,120]
[355757348,1741536647248,-2200.0,0.00048389,120]
[355757349,1741536647258,-242.2913555,0.00048399,30]
[355757350,1741536647267,-281529.79992516,0.000484,120]
[355757351,1741536647277,-151.0,0.000484,120]
[355757352,1741536647286,-151.0,0.000484,10]
[355757353,1741536647295,-181.850551,0.000484,120]
[355757354,1741536647305,-151.0,0.000484,120]
[355757355,1741536647315,-151.0,0.000484,120]
[355757356,1741536647324,-151.0,0.000484,120]
[355757357,1741536647336,-151.0,0.000484,120]
[355757358,1741536647346,-151.0,0.000484,120]
[355757359,1741536647355,-151.0,0.000484,120]
[355757360,1741536647364,-151.0,0.000484,120]
[355757361,1741536647374,-151.0,0.000484,90]
[355757362,1741536647385,-151.0,0.000484,120]
[355757363,1741536647395,-235.547413,0.000484,120]
[355757364,1741536647404,-202.193495,0.000484,120]
[355757365,1741536647415,-151.0,0.000484,120]
[355757366,1741536647425,-151.0,0.000484,120]
[355757367,1741536647435,-237.18454,0.000484,120]
[355757368,1741536647445,-151.0,0.000484,120]
[355757369,1741536647455,-150.64,0.000484,120]
[355757370,1741536647464,-200.0,0.00048417,120]
[355757371,1741536647474,-1000.0,0.00048465,7]
[355757372,1741536647484,-1000.0,0.00048465,7]
[355757373,1741536647493,-1000.0,0.00048465,7]
[355757374,1741536647504,-1000.0,0.00048465,7]
[355757375,1741536647514,-1000.0,0.00048465,7]
[355757376,1741536647524,-1000.0,0.00048465,7]
[355757377,1741536647533,-1000.0,0.00048465,7]
[355757378,1741536647543,-1014.3195053,0.00048465,7]
[355757379,1741536647553,-531.0,0.00048466,2]
[355757380,1741536647563,-531.0,0.00048466,2]
[355757381,1741536647572,-531.0,0.00048466,2]
[355757382,1741536647585,-531.0,0.00048466,2]
[355757383,1741536647594,-531.0,0.00048466,2]
[355757384,1741536647603,-531.0,0.00048466,2]
[355757385,1741536647614,-531.0,0.00048466,2]
[355757386,1741536647623,-531.0,0.00048466,2]
[355757387,1741536647634,-531.0,0.00048466,2]
[355757388,1741536647643,-531.0,0.00048466,2]
[355757389,1741536647653,-531.0,0.00048466,2]
[355757390,1741536647662,-531.0,0.00048466,2]
[355757391,1741536647672,-531.0,0.00048466,2]
[355757392,1741536647682,-531.0,0.00048466,2]
[355757393,1741536647692,-2000.0,0.0004847,120]
[355757394,1741536647701,-531.0,0.0004847,2]
[355757395,1741536647711,-531.0,0.0004847,2]
[355757396,1741536647722,-531.0,0.0004847,2]
[355757397,1741536647735,-531.0,0.0004847,2]
[355757398,1741536647745,-531.0,0.0004847,2]
[355757399,1741536647755,-531.0,0.0004847,2]
[355757400,1741536647765,-531.0,0.0004847,2]
[355757401,1741536647774,-531.0,0.0004847,2]
[355757402,1741536647784,-531.0,0.0004847,2]
[355757403,1741536647795,-531.0,0.0004847,2]
[355757404,1741536647809,-531.0,0.0004847,2]
[355757405,1741536647820,-531.0,0.0004847,2]
[355757406,1741536647833,-531.0,0.0004847,2]
[355757407,1741536647843,-500.0,0.00048473,10]
[355757408,1741536647932,-4000.0,0.00048488,120]
[355757409,1741536647952,-4000.0,0.00048488,120]
[355757410,1741536647962,-559.0265757,0.00048493,30]
[355757411,1741536647973,-559.0265757,0.00048493,30]
[355757412,1741536647982,-559.0265757,0.00048493,30]
[355757413,1741536647992,-559.0265757,0.00048493,30]
[355757414,1741536648002,-559.0265757,0.00048493,30]
[355757415,1741536648012,-559.0265757,0.00048493,30]
[355757416,1741536648023,-572.0554571,0.00048493,30]
[355757417,1741536648033,-77013.06652839,0.000485,120]
[355757418,1741536648888,-500.0,0.00046575,120]
[355757419,1741536648898,-500.0,0.00046575,120]
[355757420,1741536648908,-344.17,0.00047123,120]
[355757421,1741536648919,-151.0,0.00047671,120]
[355757422,1741536648930,-151.0,0.000484,120]
[355757423,1741536648940,-81386.97540299,0.000485,120]
[355757424,1741536648953,-532039.98330362,0.000485,120]
[355757425,1741536648965,-378372.78156499,0.000485,120]
[355757426,1741536648977,-2456.60296078,0.000485,120]
[355757427,1741536649183,-1317.3014477,0.00038022,2]
[355757428,1741536649193,-6059.79019217,0.000485,120]
[355757430,1741536675396,445.95582708,0.00029207,2]
[355757432,1741536903167,4792.4760081,0.0002,2]
[355757462,1741537598098,-883.24840893,0.00033274,2]
[355757463,1741537598124,-476.92987911,0.0003361,2]
[355757464,1741537598146,-160.0,0.00034972,2]
[355757465,1741537598170,-318.91139163,0.00035019,30]
[355757466,1741537598193,-400.0,0.00035019,2]
[355757467,1741537598359,-330.90660118,0.0003502,2]
[355757468,1741537635230,-400.0,0.00035019,2]
[355757469,1741537635253,-3077.02266999,0.0003502,2]
[355757470,1741537636132,-6592.07072883,0.0003502,2]
[355757471,1741537636155,-1028.58482264,0.00035799,2]
[355757472,1741537636177,-315.691034,0.0003589,2]
[355757473,1741537636206,-197.0113502,0.00035898,2]
[355757474,1741537638090,-302.9886498,0.00035898,2]
[355757475,1741537638117,-500.0,0.00035898,2]
[355757476,1741537638143,-500.0,0.00035898,2]
[355757477,1741537638173,-500.0,0.00035898,2]
[355757478,1741537638201,-500.0,0.00035898,2]
[355757479,1741537638231,-500.0,0.00035898,2]
[355757480,1741537638256,-500.0,0.00035898,2]
[355757481,1741537638282,-500.0,0.00035898,2]
[355757482,1741537638312,-500.0,0.00035898,2]
[355757483,1741537638339,-500.0,0.00035898,2]
[355757484,1741537638365,-105.39150643,0.00035898,2]
[355757498,1741537713796,4095.01652269,0.0001711,2]
[355757499,1741537717973,18719.78683215,0.000145,2]
[355757500,1741537718063,233.98818893,0.0002,7]
[355757501,1741537721089,300.0,0.0001,2]
[355757506,1741537748246,-405.17461211,0.00033798,2]
[355757507,1741537748268,-2717.47004589,0.00035,2]
[355757508,1741537761111,-7811.565054,0.00035,2]
[355757509,1741537761136,-500.0,0.00035897,2]
[355757510,1741537761162,-500.0,0.00035897,2]
[355757511,1741537761186,-500.0,0.00035897,2]
[355757512,1741537761210,-500.0,0.00035897,2]
[355757513,1741537761231,-404.40496379,0.00035897,15]
[355757514,1741537761254,-500.0,0.00035897,2]
[355757515,1741537761278,-500.0,0.00035897,2]
[355757516,1741537761299,-500.0,0.00035897,2]
[355757517,1741537761334,-500.0,0.00035897,2]
[355757518,1741537761363,-500.0,0.00035897,2]
[355757519,1741537761385,-500.0,0.00035897,2]
[355757520,1741537761410,-500.0,0.00035897,2]
[355757521,1741537761434,-500.0,0.00035897,2]
[355757522,1741537761457,-500.0,0.00035897,2]
[355757523,1741537761482,-500.0,0.00035897,2]
[355757524,1741537761505,-500.0,0.00035897,2]
[355757525,1741537761530,-500.0,0.00035897,2]
[355757526,1741537761555,-500.0,0.00035897,2]
[355757527,1741537761579,-500.0,0.00035897,2]
[355757528,1741537761603,-500.0,0.00035897,2]
[355757529,1741537761629,-500.0,0.00035897,2]
[355757530,1741537761652,-500.0,0.00035897,2]
[355757531,1741537761675,-500.0,0.00035897,2]
[355757532,1741537761698,-500.0,0.00035897,2]
[355757533,1741537761723,-500.0,0.00035897,2]
[355757534,1741537761746,-168.93517055,0.00035897,2]
[355757535,1741537761771,-500.0,0.00035897,2]
[355757536,1741537761792,-500.0,0.00035897,2]
[355757537,1741537761816,-500.0,0.00035897,2]
[355757538,1741537761840,-500.0,0.00035897,2]
[355757539,1741537761865,-500.0,0.00035897,2]
[355757540,1741537761887,-500.0,0.00035897,2]
[355757541,1741537761908,-500.0,0.00035897,2]
[355757542,1741537761932,-500.0,0.00035897,2]
[355757543,1741537761954,-500.0,0.00035897,2]
[355757544,1741537761977,-500.0,0.00035897,2]
[355757545,1741537761999,-443.7760047,0.00035897,2]
[355757546,1741537762022,-500.0,0.00035897,2]
[355757547,1741537762045,-500.0,0.00035897,2]
[355757548,1741537762069,-500.0,0.00035897,2]
[355757549,1741537762096,-452.70531906,0.00035897,2]
[355757553,1741537766255,-47.29468094,0.00035897,2]
[355757554,1741537766277,-500.0,0.00035897,2]
[355757555,1741537766302,-500.0,0.00035897,2]
[355757556,1741537766327,-500.0,0.00035897,2]
[355757557,1741537766350,-500.0,0.00035897,2]
[355757558,1741537766373,-500.0,0.00035897,2]
[355757559,1741537766397,-500.0,0.00035897,2]
[355757560,1741537766421,-500.0,0.00035897,2]
[355757561,1741537766444,-499.99999999,0.00035897,2]
[355757562,1741537766465,-188.0,0.00035898,2]
[355757563,1741537766486,-160.04271205,0.000359,5]
[355757564,1741537766506,-500.0,0.000359,5]
[355757565,1741537766527,-500.0,0.000359,5]
[355757566,1741537766547,-500.0,0.000359,2]
[355757567,1741537766568,-2960.0,0.0003596,2]
[355757568,1741537766588,-686.71033131,0.00036,2]
[355757569,1741537766609,-199.76353903,0.000362,98]
[355757570,1741537766630,-500.0,0.00037421,2]
[355757571,1741537766651,-13186.9567895,0.00037488,2]
[355757572,1741537766672,-349.82031971,0.0003835,2]
[355757573,1741537766692,-500.0,0.0003835,5]
[355757574,1741537766714,-405.17461211,0.00038798,2]
[355757575,1741537766735,-188.0,0.00038898,2]
[355757576,1741537766755,-1028.58482261,0.00039099,2]
[355757577,1741537766777,-315.691034,0.00041211,2]
[355757578,1741537766797,-274.78771656,0.00041379,10]
[355757579,1741537766819,-746.92778365,0.00041379,10]
[355757620,1741537832469,-400.0,0.00035899,2]
[355757622,1741537832480,-501.93751938,0.000359,5]
[355757624,1741537832489,-240.22677918,0.000359,2]
[355757626,1741537832499,-500.0,0.000359,5]
[355757628,1741537832508,-500.0,0.000359,2]
[355757630,1741537832518,-277.04331406,0.000359,2]
[355757632,1741537832528,-2232.24847492,0.000359,7]
[355757634,1741537832538,-560.0,0.00038456,5]
[355757636,1741537832547,-783.0,0.00041195,5]
[355757638,1741537832557,-253.07221635,0.00041379,10]
[355757640,1741537832566,-662.69435949,0.00041379,2]
[355757642,1741537832575,-500.0,0.00041379,10]
[355757644,1741537832584,-1000.0,0.00041379,2]
[355757646,1741537832594,-185.899,0.00041637,61]
[355757648,1741537832604,-188.0,0.00042523,2]
[355757650,1741537832613,-14440.62372907,0.00042523,2]
[355757662,1741537832717,-323.9,0.00042523,2]
[355757720,1741537838364,-4405.60000003,0.00042523,2]
[355757721,1741537838479,-5729.8762709,0.00042523,2]
[355757722,1741537838490,-246.61278489,0.00042539,2]
[355757723,1741537838499,-250.0,0.00042639,2]
[355757724,1741537838509,-405.17461211,0.00043798,2]
[355757725,1741537838518,-500.0,0.00043829,10]
[355757726,1741537838527,-569.02,0.00043835,120]
[355757727,1741537838537,-2411.25784797,0.00044,60]
[355757728,1741537838546,-933.0,0.00044129,5]
[355757729,1741537838555,-246.61278489,0.00044507,2]
[355757730,1741537838564,-781.65,0.00045205,60]
[355757731,1741537838573,-781.65,0.00045479,60]
[355757732,1741537838583,-781.65,0.00045753,60]
[355757733,1741537838592,-2516.45812,0.00045939,30]
[355757734,1741537838601,-277.51838745,0.0004594,2]
[355757735,1741537838610,-500.0,0.00045985,10]
[355757736,1741537838619,-781.65,0.00046027,60]
[355757737,1741537838628,-416.66666667,0.00046182,2]
[355757738,1741537838637,-781.65,0.00046301,60]
[355757739,1741537838646,-246.61278489,0.00046475,2]
[355757740,1741537838655,-3000.0,0.00046475,2]
[355757741,1741537838665,-1000.0,0.00046475,60]
[355757742,1741537838674,-307.99,0.000465,30]
[355757743,1741537838683,-315.691034,0.00046532,2]
[355757744,1741537838693,-392.50698544,0.00046564,120]
[355757745,1741537838702,-627.07653179,0.00046564,31]
[355757746,1741537838712,-58879.4295024,0.00046565,4]
[355757747,1741537838721,-16643.4662823,0.00046565,4]
[355757748,1741537838730,-439.88021812,0.00046573,10]
[355757749,1741537838740,-500.40774184,0.00046573,10]
[355757750,1741537838749,-150.0,0.00046574,30]
[355757751,1741537838759,-501.23477947,0.00046575,120]
[355757752,1741537838768,-500.0,0.00046575,120]
[355757753,1741537838777,-525.25,0.00046575,120]
[355757754,1741537838787,-500.0,0.00046575,120]
[355757755,1741537838796,-500.0,0.00046575,120]
[355757756,1741537838805,-500.0,0.00046575,2]
[355757757,1741537838815,-500.0,0.00046575,120]
[355757758,1741537838824,-500.0,0.00046575,120]
[355757759,1741537838833,-500.0,0.00046575,120]
[355757760,1741537838842,-500.0,0.00046575,120]
[355757761,1741537838851,-500.0,0.00046575,120]
[355757762,1741537838861,-500.0,0.00046575,120]
[355757763,1741537838872,-500.0,0.00046575,15]
[355757764,1741537838882,-500.0,0.00046575,120]
[355757765,1741537838892,-500.0,0.00046575,120]
[355757766,1741537838901,-500.0,0.00046575,120]
[355757767,1741537838910,-2360.96,0.00046575,120]
[355757768,1741537838920,-1286.17,0.00046575,2]
[355757769,1741537838929,-500.0,0.00046575,120]
[355757770,1741537838939,-500.0,0.00046575,120]
[355757771,1741537838948,-500.0,0.00046575,120]
[355757772,1741537838957,-500.0,0.00046575,120]
[355757773,1741537838967,-546.21,0.00046575,120]
[355757774,1741537838976,-500.0,0.00046575,120]
[355757775,1741537838986,-500.0,0.00046575,120]
[355757776,1741537838996,-1094.68,0.00046575,120]
[355757777,1741537839006,-549.24,0.00046575,120]
[355757778,1741537839015,-500.0,0.00046575,120]
[355757779,1741537839024,-500.0,0.00046575,120]
[355757780,1741537839034,-500.0,0.00046575,120]
[355757781,1741537839043,-500.0,0.00046575,120]
[355757782,1741537839053,-164.38247618,0.00046575,120]
[355757783,1741537839062,-500.0,0.00046575,120]
[355757784,1741537839071,-781.65,0.00046575,60]
[355757785,1741537839081,-500.0,0.00046575,120]
[355757786,1741537839091,-500.0,0.00046575,120]
[355757787,1741537839102,-500.0,0.00046575,120]
[355757788,1741537839114,-515.81265379,0.00046575,120]
[355757789,1741537839125,-500.0,0.00046575,120]
[355757790,1741537839134,-500.0,0.00046575,120]
[355757791,1741537839144,-500.0,0.00046575,120]
[355757792,1741537839154,-212.95256584,0.00046575,120]
[355757793,1741537839164,-500.0,0.00046575,120]
[355757794,1741537839173,-542.19946794,0.00046575,120]
[355757795,1741537839184,-500.0,0.00046575,120]
[355757796,1741537839194,-502.86521533,0.00046575,120]
[355757797,1741537839204,-500.0,0.00046575,120]
[355757798,1741537839214,-500.0,0.00046575,120]
[355757799,1741537839223,-500.0,0.00046575,120]
[355757800,1741537839232,-283.40772047,0.00046575,120]
[355757801,1741537839242,-664.67,0.00046575,120]
[355757802,1741537839252,-500.0,0.00046575,120]
[355757803,1741537839261,-500.0,0.00046575,120]
[355757804,1741537839271,-500.0,0.00046575,120]
[355757805,1741537839281,-587.27,0.00046575,120]
[355757806,1741537839291,-500.0,0.00046575,120]
[355757807,1741537839301,-500.0,0.00046575,120]
[355757808,1741537839310,-2244.57,0.00046575,120]
[355757809,1741537839320,-500.0,0.00046575,120]
[355757810,1741537839330,-500.0,0.00046575,120]
[355757811,1741537839339,-500.0,0.00046575,120]
[355757812,1741537839348,-500.0,0.00046575,120]
[355757813,1741537839358,-896.67,0.00046575,120]
[355757814,1741537839367,-500.0,0.00046575,120]
[355757815,1741537839376,-974.7,0.00046575,120]
[355757816,1741537839386,-500.0,0.00046575,120]
[355757817,1741537839395,-2921.33,0.00046575,120]
[355757818,1741537839404,-500.0,0.00046575,120]
[355757819,1741537839414,-1278.25,0.00046575,120]
[355757820,1741537839423,-500.0,0.00046575,120]
[355757821,1741537839432,-500.0,0.00046575,120]
[355757822,1741537839442,-500.0,0.00046575,120]
[355757823,1741537839451,-1387.77,0.00046575,120]
[355757824,1741537839461,-500.0,0.00046575,120]
[355757825,1741537839470,-29415.15,0.00046575,7]
[355757826,1741537839480,-752.45,0.00046575,120]
[355757827,1741537839489,-500.0,0.00046575,120]
[355757828,1741537839499,-515.75585988,0.00046575,120]
[355757829,1741537839508,-755.63761277,0.00046575,120]
[355757830,1741537839522,-5035.41238723,0.00046575,120]
[355757831,1741537839531,-500.0,0.00046575,120]
[355757832,1741537839643,-645.87,0.00046575,120]
[355757833,1741537839658,-914.58,0.00046575,120]
[355757834,1741537839668,-500.0,0.00046575,120]
[355757835,1741537839678,-771.85,0.00046575,120]
[355757836,1741537839687,-500.0,0.00046575,120]
[355757837,1741537839697,-878.32,0.00046575,120]
[355757838,1741537839706,-500.0,0.00046575,120]
[355757839,1741537839716,-500.0,0.00046575,120]
[355757840,1741537839726,-1550.78,0.00046575,60]
[355757841,1741537839736,-500.0,0.00046575,120]
[355757842,1741537839745,-500.0,0.00046575,120]
[355757843,1741537839755,-500.0,0.00046575,120]
[355757844,1741537839765,-500.0,0.00046575,120]
[355757845,1741537839774,-500.0,0.00046575,120]
[355757846,1741537839784,-500.0,0.00046575,120]
[355757847,1741537839794,-496.07709717,0.00046575,120]
[355757848,1741537839804,-1012.02,0.00046575,120]
[355757849,1741537839814,-1822.86,0.00046575,120]
[355757850,1741537839824,-500.0,0.00046575,120]
[355757851,1741537839834,-500.0,0.00046575,120]
[355757852,1741537839845,-868.28,0.00046575,120]
[355757853,1741537839854,-500.0,0.00046575,120]
[355757855,1741537839867,-500.0,0.00046575,120]
[355757856,1741537839877,-500.0,0.00046575,120]
[355757857,1741537839886,-500.0,0.00046575,120]
[355757859,1741537839896,-500.0,0.00046575,120]
[355757860,1741537839905,-500.0,0.00046575,120]
[355757861,1741537839915,-500.0,0.00046575,120]
[355757862,1741537839924,-500.0,0.00046575,120]
[355757863,1741537839933,-500.0,0.00046575,120]
[355757864,1741537839943,-500.0,0.00046575,120]
[355757865,1741537839953,-1825.39,0.00046575,120]
[355757866,1741537839962,-1366.41,0.00046575,120]
[355757867,1741537839971,-500.0,0.00046575,120]
[355757868,1741537839980,-500.0,0.00046575,120]
[355757869,1741537839990,-500.0,0.00046575,120]
[355757870,1741537839999,-500.0,0.00046575,120]
[355757871,1741537840009,-500.0,0.00046575,120]
[355757873,1741537840019,-500.0,0.00046575,120]
[355757874,1741537840028,-500.0,0.00046575,120]
[355757876,1741537840037,-581.35,0.00046575,120]
[355757878,1741537840047,-500.0,0.00046575,120]
[355757880,1741537840056,-500.0,0.00046575,2]
[355757881,1741537840066,-8853.7714119,0.00046575,2]
[355757921,1741537841137,-2174.9585881,0.00046575,2]
[355757922,1741537841149,-500.0,0.00046575,120]
[355757923,1741537841159,-500.0,0.00046575,120]
[355757924,1741537841169,-500.0,0.00046575,120]
[355757925,1741537841179,-500.0,0.00046575,120]
[355757926,1741537841191,-473.17060065,0.00046575,120]
[355757927,1741537841201,-500.0,0.00046575,120]
[355757928,1741537841210,-88.50936111,0.00046575,2]
[355758100,1741537846817,-545.37557292,0.00046575,2]
[355758103,1741537846849,-366.11506597,0.00046575,2]
[355758105,1741537846859,-500.0,0.00046575,120]
[355758107,1741537846868,-500.0,0.00046575,2]
[355758109,1741537846882,-637.830246,0.00046575,2]
[355758110,1741537846891,-150.0,0.00046575,10]
[355758112,1741537846901,-781.65,0.00046849,60]
[355758114,1741537846911,-154.22678559,0.00046849,120]
[355758115,1741537846921,-600.0,0.0004704,2]
[355758116,1741537846930,-14189.49596866,0.00047113,4]
[355758120,1741538682911,160.0,0.0003,7]
[355758122,1741538818110,-167.643,0.00033715,2]
[355758123,1741538818131,-154.26002531,0.00033715,2]
[355758124,1741538840126,-18.74447469,0.00033715,2]
[355758125,1741538840147,-300.0,0.00034,2]
[355758126,1741538840168,-52.99552802,0.00035,5]
[355758127,1741538853093,-99.09047198,0.00035,5]
[355758128,1741538853116,-152.0,0.0003576,2]
[355758129,1741538853139,-318.337379,0.0003589,2]
[355758130,1741538853163,-754.1783071,0.000359,7]
[355758136,1741538961083,-288.52002813,0.000338,2]
[355758137,1741538961106,-166.66666666,0.00035845,2]
[355758138,1741538961128,-400.0,0.00035945,2]
[355758139,1741538961150,-10000.0,0.00035946,2]
[355758140,1741538961171,-303.941175,0.00035991,2]
[355758141,1741538961192,-160.0,0.00036282,2]
[355758142,1741538961217,-500.0,0.00036307,2]
[355758143,1741538961239,-500.0,0.00036307,2]
[355758144,1741538961260,-274.86318937,0.00036307,15]
[355758145,1741538961284,-500.0,0.00036307,2]
[355758146,1741538961307,-500.0,0.00036307,2]
[355758147,1741538961331,-500.0,0.00036307,2]
[355758148,1741538961354,-500.0,0.00036307,2]
[355758149,1741538961377,-500.0,0.00036307,2]
[355758150,1741538961400,-500.0,0.00036307,2]
[355758151,1741538961423,-500.0,0.00036307,2]
[355758152,1741538961446,-387.30996087,0.00036307,2]
[355758153,1741538961471,-500.0,0.00036307,2]
[355758154,1741538961495,-500.0,0.00036307,2]
[355758155,1741538961518,-500.0,0.00036307,2]
[355758156,1741538961544,-500.0,0.00036307,2]
[355758157,1741538961568,-500.0,0.00036307,2]
[355758158,1741538961591,-500.0,0.00036307,2]
[355758159,1741538961614,-500.0,0.00036307,2]
[355758160,1741538961638,-500.0,0.00036307,2]
[355758161,1741538961660,-500.0,0.00036307,2]
[355758162,1741538961683,-500.0,0.00036307,2]
[355758163,1741538961706,-500.0,0.00036307,2]
[355758164,1741538961729,-500.0,0.00036307,2]
[355758165,1741538961753,-500.0,0.00036307,2]
[355758166,1741538961776,-500.0,0.00036307,2]
[355758167,1741538961799,-500.0,0.00036307,2]
[355758168,1741538961822,-500.0,0.00036307,2]
[355758169,1741538961845,-500.0,0.00036307,2]
[355758170,1741538961869,-500.0,0.00036307,2]
[355758171,1741538961893,-500.0,0.00036307,2]
[355758172,1741538961917,-500.0,0.00036307,2]
[355758173,1741538961941,-500.0,0.00036307,2]
[355758174,1741538961964,-475.16491378,0.00036307,2]
[355758175,1741538962070,-24.83508622,0.00036307,2]
[355758176,1741538962095,-500.0,0.00036307,2]
[355758177,1741538962118,-500.0,0.00036307,2]
[355758178,1741538962142,-500.0,0.00036307,2]
[355758179,1741538962165,-500.0,0.00036307,2]
[355758180,1741538962188,-500.0,0.00036307,2]
[355758181,1741538962212,-500.0,0.00036307,2]
[355758182,1741538962237,-500.0,0.00036307,2]
[355758183,1741538962266,-500.0,0.00036307,2]
[355758184,1741538962289,-500.0,0.00036307,2]
[355758185,1741538962312,-500.0,0.00036307,2]
[355758186,1741538962337,-500.0,0.00036307,2]
[355758187,1741538962361,-500.0,0.00036307,2]
[355758188,1741538962385,-500.0,0.00036307,2]
[355758189,1741538962409,-500.0,0.00036307,2]
[355758190,1741538962433,-471.47233587,0.00036307,2]
[355758191,1741538962458,-500.0,0.00036307,2]
[355758192,1741538962483,-500.0,0.00036307,2]
[355758193,1741538962508,-500.0,0.00036307,2]
[355758194,1741538962531,-500.0,0.00036307,2]
[355758195,1741538962556,-500.0,0.00036307,2]
[355758196,1741538962580,-500.0,0.00036307,2]
[355758197,1741538962603,-500.0,0.00036307,2]
[355758198,1741538962626,-500.0,0.00036307,2]
[355758199,1741538962649,-500.0,0.00036307,2]
[355758200,1741538962672,-500.0,0.00036307,2]
[355758201,1741538962694,-500.0,0.00036307,2]
[355758202,1741538962717,-500.0,0.00036307,2]
[355758203,1741538962740,-500.0,0.00036307,2]
[355758204,1741538962763,-500.0,0.00036307,2]
[355758205,1741538962786,-500.0,0.00036307,2]
[355758206,1741538962809,-500.0,0.00036307,2]
[355758207,1741538962833,-500.0,0.00036307,2]
[355758208,1741538962856,-449.99999999,0.00036307,2]
[355758209,1741538962877,-1590.7070563,0.00036309,2]
[355758210,1741538962897,-500.0,0.00036384,2]
[355758211,1741538962917,-1819.9795269,0.00036385,2]
[355758212,1741538962939,-500.0,0.000364,2]
[355758213,1741538963087,-500.0,0.000364,5]
[355758214,1741538963109,-500.0,0.000364,5]
[355758215,1741538963131,-342.40742371,0.000364,5]
[355758216,1741538966067,-157.59257629,0.000364,5]
[355758217,1741538966088,-500.0,0.000364,5]
[355758218,1741538966108,-199.28218752,0.000364,5]
[355758219,1741538966128,-628.43540584,0.000364,2]
[355758220,1741538966148,-500.0,0.00036464,2]
[355758221,1741538966168,-512.68377062,0.00036658,2]
[355758222,1741538966188,-500.22200962,0.00037017,5]
[355758223,1741538966208,-500.0,0.0003714,5]
[355758224,1741538966228,-500.0,0.0003714,5]
[355758225,1741538966250,-274.7548898,0.0003729,15]
[355758226,1741538966270,-438.95357225,0.0003729,15]
[355758227,1741538966289,-250.0,0.00037291,2]
[355758228,1741538966310,-560.0,0.00038503,5]
[355758229,1741538966333,-288.52002813,0.000388,2]
[355758230,1741538966353,-399.93913698,0.0004,15]
[355758231,1741539010956,1950.0,0.0003,3]
[355758316,1741539032932,-400.0,0.00036399,2]
[355758318,1741539032942,-500.0,0.000364,5]
[355758320,1741539032952,-500.0,0.000364,2]
[355758322,1741539032962,-500.0,0.000364,5]
[355758324,1741539032971,-100.0,0.000364,5]
[355758326,1741539032983,-400.0,0.000364,5]
[355758328,1741539032993,-39.31461889,0.000364,5]
[355758334,1741539033037,-460.68538111,0.000364,5]
[355758336,1741539033047,-500.0,0.000364,5]
[355758338,1741539033057,-1103.82021249,0.000369,7]
[355758341,1741539033069,-268.64987737,0.000369,7]